Cogmind - Beta 10.2 @@@ ROGUE MODE // 2020.11.09 @ 20:43:58 // Halloween2020/ForbiddenLore Player: Plexion Result: Self-destructed Performance ------------- Evolutions (2) 1000 Regions Visited (6) 1200 Robots Destroyed (42) 210 Value Destroyed (934) 934 Prototype IDs (25) 500 Alien Tech Used (0) 0 Bonus (577) 577 TOTAL SCORE: 4421 Bonus ------- Follower Combat Kills 277 Aligned with FarCom 300 Cogmind --------- Core Integrity 436/550 Matter 300/300 Energy 265/265 System Corruption 1% Temperature Cool (0) Movement Rolling (96) Ox1 Location -8/Storage Parts ------- > --- POWER (1) -------- Improved Ion Engine > --- PROPULSION (4) --- Light Treads Wheel Wheel Compact Wheel > --- UTILITY (4) ------ Large Storage Unit Large Storage Unit Hardened Medium Armor Plating Improved Light Armor Plating > --- WEAPON (2) ------- Autogun Powered Hammer > --- INVENTORY (16) --- Light Ion Engine Improved Heat Sink Improved Heat Sink Lightpack 2.0 Light Armor Plating Particle Gun Heavy Laser Improved EM Pulse Cannon Heavy Assault Rifle Autogun Autogun Autogun Shock Bomb Launcher Guided Missile Launcher Peak State ------------ > --- POWER ------------ Improved Ion Engine > --- PROPULSION ------- Light Treads Wheel Wheel Compact Wheel > --- UTILITY ---------- Large Storage Unit Large Storage Unit Light Armor Plating Improved Light Armor Plating > --- WEAPON ----------- Guided Missile Launcher > --- INVENTORY -------- Light Ion Engine Wheel Improved Heat Sink Improved Heat Sink Lightpack 2.0 Light Armor Plating Light Armor Plating Hacking Suite Particle Gun Improved EM Pulse Cannon Heavy Assault Rifle Autogun Autogun Shock Bomb Launcher Powered Hammer [Rating: 27] Favorites ----------- Power Light Ion Engine Engine Light Ion Engine Propulsion Compact Wheel Treads Light Treads Leg Aluminum Leg Wheel Compact Wheel Utility Large Storage Unit Device Improved Heat Sink Storage Large Storage Unit Protection Improved Light Armor Plating Weapon Autogun Energy Gun EM Pulse Gun Ballistic Gun Autogun Launcher Guided Missile Launcher Impact Weapon Powered Hammer Build | -11 -10 -10 -10 -9 -8 -8 ------- Run | Scr Mat Min Exi Min Mat Sto Slots Evolved 4 | . . . . . 4 . Power . | . . . . . . . Propulsion 2 | . . . . . 2 . Utility 2 | . . . . . 2 . Weapon . | . . . . . . . Parts Attached 47 | 9 9 3 1 5 7 13 Power 4 | 1 . . 1 . 1 1 Engine 4 | 1 . . 1 . 1 1 Core . | . . . . . . . Reactor . | . . . . . . . Propulsion 16 | 4 3 1 . 3 3 2 Treads 3 | 2 . . . . . 1 Leg 1 | . . . . 1 . . Wheel 12 | 2 3 1 . 2 3 1 Hover . | . . . . . . . Flight . | . . . . . . . Utility 9 | 2 2 . . . 3 2 Device 1 | . . . . . 1 . Storage 4 | 2 2 . . . . . Processor . | . . . . . . . Hackware . | . . . . . . . Protection 4 | . . . . . 2 2 Artifact . | . . . . . . . Weapon 18 | 2 4 2 . 2 . 8 Energy Gun 6 | 2 2 1 . . . 1 Energy Cannon . | . . . . . . . Ballistic Gun 9 | . 2 1 . 2 . 4 Ballistic Cannon . | . . . . . . . Launcher 1 | . . . . . . 1 Special Weapon . | . . . . . . . Impact Weapon 2 | . . . . . . 2 Slashing Weapon . | . . . . . . . Piercing Weapon . | . . . . . . . Special Melee Weapon . | . . . . . . . Unidentified Prototypes 2 | . . . . . . 2 Parts Lost 11 | . . 5 . 2 3 1 Power 2 | . . 1 . . 1 . Propulsion 5 | . . 2 . . 2 1 Utility . | . . . . . . . Weapon 4 | . . 2 . 2 . . Highest Loss Streak 5 | . . 5 . 2 1 1 Average Slot Usage (%) 94 | . 99 85 75 98 97 97 Engine 10 | . 14 7 4 14 9 9 Treads 1 | . . . . . . 6 Wheel 26 | . 28 20 14 25 35 27 Device 1 | . . . . . 6 . Storage 23 | . 28 28 28 28 18 18 Protection 5 | . . . . . 10 17 Energy Gun 9 | . 22 20 14 10 . . Ballistic Gun 13 | . 4 7 14 16 18 14 Naked Turns . | . . . . . . . Heaviest Build 56 | 14 39 39 40 41 47 56 Greatest Support 54 | 40 32 20 16 32 54 36 Greatest Overweight (x) 3 | . 1 2 2 3 1 1 Average Overweight (x) . | . . 1 2 1 . 1 Largest Inventory Capacity 16 | 8 16 16 16 16 16 16 Average Capacity 14 | 5 8 16 16 16 16 16 Most Carried 16 | 5 11 11 10 15 16 16 Average Carried 11 | 2 6 9 8 12 14 15 Final Capacity 16 | 8 16 16 16 16 16 16 Final Carried 16 | 5 11 8 9 13 16 16 Class Distribution -------------------- 60% | Mutant 31% | Scavenger-Mutant 7% | Commander-Mutant Dominant Class ---------------- Mutant | -10/Materials Mutant | -10/Mines Mutant | -10/Exiles Mutant | -9/Mines Scavenger-Mutant | -8/Materials Scavenger-Mutant | -8/Storage Resources | -11 -10 -10 -10 -9 -8 -8 ----------- Run | Scr Mat Min Exi Min Mat Sto Matter Collected 1160 | 290 68 63 . 136 253 350 Remotely . | . . . . . . . Salvage Created 1863 | 126 397 177 . 278 401 484 Parts 106 | 9 25 5 . 17 27 23 Haulers Intercepted 3 | . . . . . 1 2 Recyclers Shooed 6 | . . 1 . 3 . 2 Parts Field Recycled . | . . . . . . . Retrieved Matter . | . . . . . . . Parts Self-Destructed . | . . . . . . . Prevented . | . . . . . . . Kills | -11 -10 -10 -10 -9 -8 -8 ------- Run | Scr Mat Min Exi Min Mat Sto Combat Hostiles Destroyed 21 | . 7 1 . 2 8 3 Guns 20 | . 6 1 . 2 8 3 AOE 1 | . 1 . . . . . Classes Destroyed 10 | 2 4 . . 1 3 . Worker 4 | . . . . 3 1 . Builder 1 | . 1 . . . . . Tunneler 3 | 1 . . . 2 . . Hauler 3 | . . . . . 1 2 Recycler 5 | 1 . 1 . 1 . 2 Operator 3 | . 1 . . . 1 1 Watcher 2 | . 1 . . . . 1 Swarmer 3 | . . . . . 3 . Grunt 14 | . 7 . . 2 4 1 Sentry 3 | . . . . . 1 2 Best Kill Streak 4 | 2 4 2 . 2 3 2 Combat Bots Only 3 | . 3 1 . 2 3 1 Max Kills in Single Turn 2 | 1 2 1 . 1 2 1 Gunslinging 1 | . . . . . 1 . Exploded 1 | . 1 . . . . . Melee . | . . . . . . . Uniques/NPCs Destroyed 1 | . . 1 . . . . YI-UF0 (-10/Mines) Combat | -11 -10 -10 -10 -9 -8 -8 -------- Run | Scr Mat Min Exi Min Mat Sto Damage Taken 1371 | . 329 244 . 196 440 162 Core 289 | . 104 49 . 22 70 44 Absorbed by Shields . | . . . . . . . Core Remaining (%) 65 | 100 . . . 30 . . Volleys Fired 111 | 2 27 8 . 21 27 26 Largest 2 | 2 2 2 . 2 2 2 Hottest 80 | 80 80 63 . 63 46 46 Shots Fired 218 | 4 54 15 . 42 54 49 Gun 218 | 4 54 15 . 42 54 49 Cannon . | . . . . . . . Launcher . | . . . . . . . Special . | . . . . . . . Kinetic 134 | . 2 7 . 22 54 49 Thermal 15 | 2 13 . . . . . Explosive . | . . . . . . . Electromagnetic 69 | 2 39 8 . 20 . . Robot Hit Streak 14 | 3 7 4 . 9 14 7 Robot Miss Streak 4 | 1 2 1 . 2 4 2 Penetration Max . | . . . . . . . Secondary Targets 2 | . . . . . 2 . Max Gunslinging Chain 1 | . . . . . 1 . Shots Hit Robots 140 | 3 32 11 . 28 38 28 Core Hits 72 | 3 17 6 . 11 19 16 Critical Hits 2 | . . . . . 1 1 Critical Kills 1 | . . . . . 1 . Critical Parts Destroyed 1 | . . . . . . 1 Melee Attacks 4 | . . . . . . 4 Impact 4 | . . . . . . 4 Slashing . | . . . . . . . Piercing . | . . . . . . . Sneak Attacks 1 | . . . . . . 1 Combat Hostiles . | . . . . . . . Follow-up Attacks . | . . . . . . . Damage Inflicted 2255 | 39 504 164 . 466 547 535 Guns 2037 | 39 415 164 . 429 547 443 Cannons . | . . . . . . . Explosions 126 | . 89 . . 37 . . Melee 84 | . . . . . . 84 Ramming 8 | . . . . . . 8 Kinetic 1337 | . 18 80 . 249 547 443 Thermal 193 | 12 144 . . 37 . . Explosive . | . . . . . . . Electromagnetic 633 | 27 342 84 . 180 . . Impact 84 | . . . . . . 84 Slashing . | . . . . . . . Piercing . | . . . . . . . Highest Corruption 1 | . . . . . . 1 Average Corruption 1 | . . . . . . 1 Corruption Purged . | . . . . . . . Overload Shots . | . . . . . . . Overflow Damage 85 | . . . . 26 . 59 Projectiles . | . . . . . . . Explosions 26 | . . . . 26 . . Melee 59 | . . . . . . 59 Knockbacks . | . . . . . . . Impact . | . . . . . . . Kinetic . | . . . . . . . Secondary . | . . . . . . . Self-Inflicted Damage 83 | . 46 . . 33 . 4 Shots 2 | . 1 . . 1 . . Rammed 1 | . . . . . . 1 Targets Rammed 1 | . . . . . . 1 Kicked . | . . . . . . . Crushed . | . . . . . . . Highest Temperature 267 | 18 267 22 . 146 18 26 Average Temperature 46 | 12 86 10 . 39 9 7 Received Heat Transfer 501 | . 159 . . 90 180 72 Siege Activations . | . . . . . . . Robots Corrupted . | . . . . . . . Combat Hostiles . | . . . . . . . Parts Fried 4 | . 2 . . . . 2 Impact Corruptions 2 | . . . . . . 2 Robots Melted . | . . . . . . . Combat Hostiles . | . . . . . . . Parts Melted 2 | . 2 . . . . . Heat Transferred 250 | 25 175 . . 50 . . Parts Sabotaged . | . . . . . . . Parts Stolen . | . . . . . . . Parts Stripped . | . . . . . . . Power Chain Reactions 2 | . 1 . . 1 . . Missiles Intercepted . | . . . . . . . Alert | -11 -10 -10 -10 -9 -8 -8 ------- Run | Scr Mat Min Exi Min Mat Sto Peak Influence 348 | 10 238 92 . 70 179 348 Initial 92 | . 6 92 . . . 56 Average 115 | 2 139 68 . 39 114 216 Maximum Alert Level 1 | . 1 . . . . 1 Low Security (%) 86 | 100 82 100 . 100 100 52 Level 1 13 | . 17 . . . . 47 Level 2 . | . . . . . . . Level 3 . | . . . . . . . Level 4 . | . . . . . . . Level 5 . | . . . . . . . High Security . | . . . . . . . Max Security . | . . . . . . . Squads Dispatched 6 | . 1 . . . 3 2 Investigation . | . . . . . . . Extermination . | . . . . . . . Reinforcement 6 | . 1 . . . 3 2 Assault . | . . . . . . . Garrison . | . . . . . . . Intercept . | . . . . . . . Construction Impeded . | . . . . . . . Haulers Reinforced . | . . . . . . . Stealth | -11 -10 -10 -10 -9 -8 -8 --------- Run | Scr Mat Min Exi Min Mat Sto Distress Signals 2 | . . . . . . 2 Communications Jammed . | . . . . . . . Distress Signals . | . . . . . . . Times Spotted 54 | . 11 1 . 2 22 18 Peak Tracking Total 5 | . 4 1 . 2 5 3 Tactical Retreats 3 | . . . . . 1 2 Traps | -11 -10 -10 -10 -9 -8 -8 ------- Run | Scr Mat Min Exi Min Mat Sto Traps Triggered 2 | . . . . . . 2 Indirectly . | . . . . . . . Trap Hack Attempts . | . . . . . . . Triggered . | . . . . . . . Disarmed . | . . . . . . . Reprogrammed . | . . . . . . . Reused . | . . . . . . . Traps Extracted . | . . . . . . . Installed . | . . . . . . . Triggered . | . . . . . . . Machines | -11 -10 -10 -10 -9 -8 -8 ---------- Run | Scr Mat Min Exi Min Mat Sto Machines Disabled 3 | . . . . . 1 2 Max in Single Turn 1 | . . . . . 1 1 Machines Sabotaged . | . . . . . . . Garrisons Compromised . | . . . . . . . Overloaded Fab Kills . | . . . . . . . Fab Network Shutdowns . | . . . . . . . Hacking | -11 -10 -10 -10 -9 -8 -8 --------- Run | Scr Mat Min Exi Min Mat Sto Machines Accessed 8 | . . . 2 . 2 4 Terminals 6 | . . . . . 2 4 Fabricators . | . . . . . . . Repair Stations . | . . . . . . . Recycling Units . | . . . . . . . Scanalyzers . | . . . . . . . Garrison Access . | . . . . . . . Total Hacks 13 | . . . 2 . 3 8 Successful 9 | . . . 2 . 1 6 Failed 4 | . . . . . 2 2 Catastrophic . | . . . . . . . Database Lockouts . | . . . . . . . Manual 9 | . . . 1 . 3 5 Terminals 11 | . . . . . 3 8 Fabricators . | . . . . . . . Repair Stations . | . . . . . . . Recycling Units . | . . . . . . . Scanalyzers . | . . . . . . . Garrison Access . | . . . . . . . Terminal Hacks 9 | . . . 2 . 1 6 Record 2 | . . . 1 . . 1 Open Door 2 | . . . . . . 2 Level Access Points 1 | . . . . . . 1 Emergency Access Points 1 | . . . . . 1 . Zone Layout 2 | . . . . . . 2 EX-Prototype ID Bank 1 | . . . 1 . . . Fabricator Hacks . | . . . . . . . Repair Station Hacks . | . . . . . . . Recycling Unit Hacks . | . . . . . . . Scanalyzer . | . . . . . . . Garrison Access Hacks . | . . . . . . . Unauthorized Hacks . | . . . . . . . Terminals . | . . . . . . . Fabricators . | . . . . . . . Repair Stations . | . . . . . . . Recycling Units . | . . . . . . . Scanalyzers . | . . . . . . . Garrison Access . | . . . . . . . Data Cores Recovered 1 | . . . . . . 1 Used 1 | . . . . . . 1 Hacking Detections 4 | . . . . . 2 2 Full Trace Events . | . . . . . . . Feedback Events . | . . . . . . . Feedback Blocked . | . . . . . . . Robot Schematics Acquired . | . . . . . . . Robots Built . | . . . . . . . Matter . | . . . . . . . Time . | . . . . . . . Total Robot Build Rating . | . . . . . . . Part Schematics Acquired . | . . . . . . . Parts Built . | . . . . . . . Matter . | . . . . . . . Time . | . . . . . . . Total Part Build Rating . | . . . . . . . Parts Repaired . | . . . . . . . Time . | . . . . . . . Parts Recycled . | . . . . . . . Recycled Matter . | . . . . . . . Retrieved Matter . | . . . . . . . Retrieved Components . | . . . . . . . Parts Scanalyzed . | . . . . . . . Part Schematics Acquired . | . . . . . . . Parts Damaged . | . . . . . . . Bothacking | -11 -10 -10 -10 -9 -8 -8 ------------ Run | Scr Mat Min Exi Min Mat Sto Used RIF Installer . | . . . . . . . Robots Hacked . | . . . . . . . Non-combat . | . . . . . . . Combat . | . . . . . . . Robot Hacks Applied . | . . . . . . . Relay Couplers Released . | . . . . . . . Robots Rewired . | . . . . . . . Allies Hacked . | . . . . . . . Hacks Repelled . | . . . . . . . Allies | -11 -10 -10 -10 -9 -8 -8 -------- Run | Scr Mat Min Exi Min Mat Sto Total Allies 13 | . . . . 3 . 10 Largest Group 10 | . . . . 3 3 10 Highest-Rated Group 173 | . . . . 40 40 173 Highest-Rated Ally 29 | . . . . 16 16 29 Total Orders . | . . . . . . . Ally Attacks 76 | . . . . . 16 60 Total Damage 957 | . . . . . 84 873 Kills 11 | . . . . . 2 9 Allies Corrupted . | . . . . . . . Allies Melted . | . . . . . . . Intel | -11 -10 -10 -10 -9 -8 -8 ------- Run | Scr Mat Min Exi Min Mat Sto Robot Analysis Total . | . . . . . . . Derelict Logs Recovered 2 | . . 1 . 1 . . Drone Launches . | . . . . . . . Drone Recoveries . | . . . . . . . Exploration | -11 -10 -10 -10 -9 -8 -8 ------------- Run | Scr Mat Min Exi Min Mat Sto Turns Passed 2613 | 87 377 173 302 595 544 535 Spaces Moved 2087 | 58 270 147 251 474 489 398 Core 5 | 5 . . . . . . Treads 9 | 9 . . . . . . Legs 2 | . . . . 2 . . Wheels 2071 | 44 270 147 251 472 489 398 Hover . | . . . . . . . Flight . | . . . . . . . Fastest Speed 50 | 50 80 90 120 105 87 96 Average Speed 100 | 105 93 101 120 108 87 96 Slowest Speed 210 | 160 100 120 120 210 105 100 Overloaded Moves . | . . . . . . . Propulsion Burnouts . | . . . . . . . Robots Hopped . | . . . . . . . Cave-ins Triggered . | . . . . . . . Exploration Rate (%) 45 | 3 56 44 62 54 46 50 Regions Visited 6 Branch Regions 4 Pre-discovered Areas 2 | . . . 1 1 . . Known Exits Taken 1 | . . . . . 1 . Unknown Exits Taken 5 | 1 1 1 1 1 . . Scrap Searched 1 | . . . . 1 . . Spaces Dug . | . . . . . . . Terrain Destroyed 10 | . 4 . . 6 . . Melee . | . . . . . . . Projectile . | . . . . . . . AOE 10 | . 4 . . 6 . . Terrain Rammed . | . . . . . . . Walls Destroyed . | . . . . . . . Machines Disabled . | . . . . . . . Actions | -11 -10 -10 -10 -9 -8 -8 --------- Run | Scr Mat Min Exi Min Mat Sto Total 2418 | 77 342 157 252 516 564 510 Wait 106 | . 18 . . 10 29 49 Move 2081 | 57 269 146 250 473 488 398 Hop . | . . . . . . . Pick Up 35 | 5 9 . 1 5 10 5 Fast Attach 21 | 9 2 . . 2 2 6 Attach 12 | . . 3 1 2 4 2 Detach 5 | 2 1 . . 1 . 1 Swap 14 | . 7 . . 1 1 5 Drop 27 | 2 9 . . 1 3 12 Fire 111 | 2 27 8 . 21 27 26 Melee 4 | . . . . . . 4 Ram 1 | . . . . . . 1 Kick . | . . . . . . . Crush . | . . . . . . . Escape Stasis . | . . . . . . . Rewire 1 | . . . . . . 1 Trap . | . . . . . . . Miscellaneous . | . . . . . . . Route ------- -11/Scrapyard -10/Materials (discovered 3 exits: [*Mat x2] / [*Min]) -10/Mines (discovered 2 exits: [*Mat] / *Exi) -10/Exiles -9/Mines (discovered 2 exits: *Mat x2) -8/Materials (discovered 3 exits: *Fac x2 / *Sto) -8/Storage (discovered 1 exit: Fac) History --------- Turn | Location | Event 55 | -11/Scrapyard | Discovered new exit (range 14) 88 | -11/Scrapyard | Entered Materials 220 | -10/Materials | Discovered new exit (range 11) 263 | -10/Materials | Discovered new exit (range 14) 325 | -10/Materials | Build established: Mutant 430 | -10/Materials | Discovered new exit (range 16) 465 | -10/Materials | Entered Mines 502 | -10/Mines | Learned 2 Materials zone layouts 549 | -10/Mines | Core integrity fell below 50% 562 | -10/Mines | Destroyed YI-UF0 582 | -10/Mines | Discovered new exit (range 15) 589 | -10/Mines | Lost 5 parts (1p2n2w) 633 | -10/Mines | Deemed a non-threat by the Exiles lab entrance 633 | -10/Mines | Discovered new exit (range 5) 638 | -10/Mines | Entered Exiles 668 | -10/Exiles | Met 8R-AWN 686 | -10/Exiles | Met EX-HEX 736 | -10/Exiles | Met EX-DEC 740 | -10/Exiles | Learned location of Zion (-7) 762 | -10/Exiles | Met EX-BIN 779 | -10/Exiles | Aligned with FarCom system 780 | -10/Exiles | Given EX-Vault access code 808 | -10/Exiles | Opened EX-Vault 815 | -10/Exiles | Found Lightpack 2.0 842 | -10/Exiles | Warned to stay clear of 0b10 Research branches 925 | -10/Exiles | Discovered new exit (range 15) 940 | -10/Exiles | Left Exiles lab with Lightpack 2.0 940 | -10/Exiles | Entered Mines 1139 | -9/Mines | Learned location of 1 exit from Materials 1241 | -9/Mines | Learned location of Storage (-8) 1328 | -9/Mines | Discovered new exit (range 10) 1366 | -9/Mines | Found a hidden stash of uninstalled traps 1410 | -9/Mines | Discovered new exit (range 5) 1533 | -9/Mines | Assisted by bots powering up and referring to "LRC-V3" 1535 | -9/Mines | Entered Materials 1535 | -8/Materials | Accompanied by 3 allies 1535 | -8/Materials | Evolved 4 slots: Propulsion x2, Utility x2 1536 | -8/Materials | Identified exit to Factory 1537 | -8/Materials | Identified exit to Storage 1696 | -8/Materials | Discovered exit to Factory (range 5) 1891 | -8/Materials | Build established: Scavenger-Mutant 2079 | -8/Materials | Entered Storage 2404 | -8/Storage | Assisted by bots powering up and referring to "LRC-V3" 2418 | -8/Storage | Found Prototype Launcher 2418 | -8/Storage | Identified Gui. Missile Launcher 2614 | -8/Storage | Self-destructed Last Messages --------------- 02540_ Acquired Lgt. Armor Plating. 02547_ Trooper 3a destroyed. 02548_ Storage Shell breached. 02553_ Acquired 10 matter. 02556_ Dropped Lgt. Armor Plating. 02559_ Acquired 10 matter. 02564_ K-01 Serf collects debris. 02567_ R-06 Scavenger collects Hammer. 02570_ Sneak attack on R-06 Scavenger. 02570_ Destroyed Tractor Beam. 02570_ Destroyed Lgt. Ion Engine. 02570_ R-06 Scavenger system corrupted by crushing effect. 02571_ R-06 Scavenger system terminally corrupted. 02571_ Com. Wheel fried. 02575_ K-01 Serf collects debris. 02585_ Triggered Explosive Trap. 02585_ An explosion rips through the floor. 02612_ Triggered Shock Trap. 02612_ The floor emits a surge of raw power. 02612_ System corrupted (+1). Map ----- +----------------------------------------------------+ | ?# "!!"" #### #####"Y"#?????? | | ?# """" / + #???? | | ?# % # # """ #???? | | ?#####+##### # """ #???? | | ???? ^ # """ #???? | | ??? + ! #???? | | ?? # """ #???? | | ?#####+######## # # """ ? ???? | | ??????????????# # # """ Y #???? | | ??????????????# !// + #???? | | ??????????????# * # ##+####??????? | | ??????????????# ??# #?????????? | | ??????????????#????# #?????????? | | ???????????????????#### #?????????? | | ??????????????????????# #??????? # | | ??????????????????????# #????? # | | ??????????????????????# #??? # | | ??????????????????????# ##Y # | | ??????????????????????# + # | | ??????????????????????# ## ! # | | ??????????????????????# #??? # | | ??????????????????????# #????? # | | ??????????????????????# #??????? # | | ????????????Y"######### #####+##??? | | ????????? g a #??? | | ????????? ^ @ #??? | | ????????? g g ^ #??? | | ??????????##+############### #??? | | ????????????????????????????? #??? | | ?????????????????????????????? #??? | | ???????????????????????????????#??? | | ??????????????????????????????????? | | ?????????????????????????????